bitfinex-derivatives/quotes_SOLF0:USTF0_20240923
["timestamp","ask_amount","ask_price","bid_price","bid_amount"]
[1727082793548,4.4663,144.25,144.23,10.9168]
[1727082793749,4.4663,144.25,144.24,7.45]
[1727082793950,4.4663,144.25,144.23,7.45]
[1727082794954,3.4663,144.25,144.23,7.45]
[1727082795352,3.4663,144.25,144.23,10.9168]
[1727082795948,1.0,144.24,144.23,10.9168]
[1727082796354,1.0,144.24,144.23,7.45]
[1727082797354,1.0,144.24,144.23,10.9168]
[1727082804264,1.0,144.24,144.23,7.45]
[1727082805259,1.0,144.24,144.23,10.9168]
[1727082805859,3.4662,144.26,144.23,10.9168]
[1727082806353,3.4663,144.25,144.23,10.9168]
[1727082806559,1.0,144.24,144.23,10.9168]
[1727082815075,1.0,144.24,144.17,3.53471596]
[1727082815369,1.0,144.24,144.23,7.45]
[1727082815976,1.0,144.24,144.23,10.9168]
[1727082816567,3.4662,144.26,144.23,10.9168]
[1727082816770,1.0,144.24,144.23,10.9168]
[1727082817671,1.0,144.24,144.23,3.4668]
[1727082817873,8.45,144.24,144.14,58.97158279]
[1727082818069,8.45,144.24,144.19,7.45]
[1727082818070,10.2696,144.23,144.19,7.45]
[1727082818268,3.4674,144.21,144.18,7.45]
[1727082818468,10.85490577,144.22,144.16,7.45]
[1727082818772,7.45,144.2,144.16,7.45]
[1727082819166,3.53188718,144.21,144.16,7.45]
[1727082819373,7.45,144.21,144.16,10.9184]
[1727082819671,10.9947241,144.21,144.16,10.9184]
[1727082819870,3.4677,144.2,144.16,10.9184]
[1727082820074,10.9947241,144.21,144.15,3.4686]
[1727082820279,7.45,144.17,144.08,3.47088221]
[1727082820574,7.45,144.16,144.12,7.45]
[1727082820773,1.3823,144.16,144.13,7.45]
[1727082821272,1.3823,144.16,144.14,7.45]
[1727082821477,1.3823,144.16,144.06,17.8894864]
[1727082821678,1.3823,144.16,144.13,7.45]
[1727082821871,1.3823,144.16,144.14,7.45]
[1727082823179,7.45,144.21,144.15,7.45]
[1727082823481,10.92053512,144.21,144.17,7.45]
[1727082823684,3.4678,144.19,144.17,7.45]
[1727082825184,3.47053512,144.21,144.18,7.45]
[1727082825385,4.1801,144.23,144.19,7.45]
[1727082826083,11.6301,144.23,144.18,7.45]
[1727082827278,1.0,144.19,144.18,7.45]
[1727082827785,4.4678,144.19,144.18,7.45]
[1727082831589,1.0,144.19,144.18,7.45]
[1727082832589,1.0,144.2,144.18,7.45]
[1727082832791,1.0,144.2,144.19,7.45]
[1727082833288,1.0,144.2,144.19,10.9178]
[1727082835386,1.0,144.21,144.2,3.4675]
[1727082835593,1.0,144.21,144.2,10.9175]
[1727082837282,3.4666,144.24,144.21,3.4673]
[1727082837491,4.4666,144.24,144.23,7.45]
[1727082838195,1.0,144.24,144.23,7.45]
[1727082839193,1.0,144.24,144.23,10.9168]
[1727082839492,1.0,144.24,144.23,7.45]
[1727082841091,4.4667,144.24,144.21,3.4672]
[1727082841289,1.0,144.24,144.15,6.86375902]
[1727082841489,1.4501,144.23,144.19,7.45]
[1727082841685,3.4674,144.21,144.19,7.45]
[1727082841889,3.4533472,144.22,144.18,7.45]
[1727082842388,3.4674,144.21,144.18,10.918]
[1727082842787,12.2837472,144.22,144.18,7.45]
[1727082842990,8.8304,144.22,144.18,7.45]
[1727082843694,3.4678,144.2,144.18,7.45]
[1727082845995,3.4673,144.21,144.18,10.9179]
[1727082846596,3.4673,144.21,144.19,7.45]
[1727082848097,1.0,144.2,144.19,7.45]
[1727082849196,4.4675,144.2,144.18,7.45]
[1727082850202,1.0,144.2,144.08,6.9405]
[1727082850398,1.0,144.2,144.16,7.45]
[1727082850697,8.45,144.2,144.1,6.86512824]
[1727082850892,8.45,144.2,144.15,7.45]
[1727082851797,8.45,144.2,144.15,10.9187]
[1727082852399,3.4682,144.18,144.15,10.9187]
[1727082852795,8.45,144.2,144.15,7.45]
[1727082853499,8.45,144.2,144.15,10.9187]
[1727082854397,3.4681,144.18,144.15,10.9187]
[1727082855707,8.45,144.2,144.15,7.45]
[1727082856202,8.45,144.2,144.09,6.8649406]
[1727082856203,3.4686,144.16,144.13,3.4692]
[1727082856399,3.4686,144.16,144.14,7.45]
[1727082856597,7.45,144.19,144.15,7.45]
[1727082857204,8.45,144.2,144.16,7.45]
[1727082857704,3.4683,144.17,144.15,7.45]
[1727082858208,3.4685,144.16,144.15,7.45]
[1727082858407,7.45,144.19,144.15,7.45]
[1727082858701,3.7682,144.18,144.15,7.45]
[1727082858905,3.4684,144.17,144.15,7.45]
[1727082861302,3.7682,144.18,144.08,17.84111865]
[1727082861512,3.7682,144.18,144.16,7.45]
[1727082861811,3.4684,144.17,144.07,10.97914994]
[1727082862002,3.4684,144.17,144.16,7.45]
[1727082862202,1.0,144.18,144.09,6.86163263]
[1727082862403,1.0,144.18,144.15,7.45]
[1727082862404,3.4685,144.16,144.15,7.45]
[1727082863305,3.4684,144.17,144.15,7.45]
[1727082864214,1.0,144.18,144.15,7.45]
[1727082865108,1.0,144.18,144.15,3.4686]
[1727082865509,3.4683,144.17,144.14,10.9188]
[1727082866611,1.0,144.18,144.16,7.45]
[1727082866804,1.0,144.18,144.17,7.45]
[1727082867404,1.0,144.18,144.17,10.9183]
[1727082868517,2.7866,144.2,144.17,10.9183]
[1727082868813,1.0,144.18,144.17,10.9183]
[1727082870010,1.0,144.18,144.1,6.86178886]
[1727082870208,1.0,144.18,144.16,7.45]
[1727082870529,4.4681,144.18,144.15,3.4685]
[1727082870815,4.4681,144.18,144.16,7.45]
[1727082872413,1.0,144.18,144.16,10.9184]
[1727082876620,1.0,144.18,144.17,10.9183]
[1727082878814,6.97188262,144.22,144.19,3.4676]
[1727082879120,6.97188262,144.22,144.2,7.45]
[1727082882921,6.97188262,144.22,144.19,10.9176]
[1727082883518,3.4674,144.21,144.19,7.45]
[1727082883722,3.50468262,144.22,144.18,7.45]
[1727082883924,11.6798,144.23,144.18,7.45]
[1727082884120,3.4673,144.21,144.18,10.9179]
[1727082884327,6.94565137,144.21,144.18,10.9179]
[1727082884521,3.4673,144.21,144.18,10.9179]
[1727082885021,6.93905964,144.21,144.18,10.9179]
[1727082885223,3.4673,144.21,144.18,10.9179]
[1727082885821,7.01885426,144.21,144.18,10.9179]
[1727082887321,4.2298,144.23,144.19,7.45]
[1727082887527,3.50357702,144.22,144.19,7.45]
[1727082888431,3.50357702,144.22,144.19,10.9177]
[1727082889732,1.0,144.2,144.19,10.9177]
[1727082891326,1.0,144.2,144.19,3.4677]
[1727082894531,1.0,144.2,144.18,10.9179]
[1727082896526,1.0,144.2,144.19,3.4678]
[1727082899538,6.97077702,144.22,144.19,3.4678]
[1727082900338,1.0,144.2,144.19,3.4678]
[1727082903046,1.0,144.21,144.2,3.4675]
[1727082903236,1.0,144.22,144.2,7.45]
[1727082903643,1.0,144.21,144.2,7.45]
[1727082903844,1.0,144.22,144.21,3.4673]
[1727082904442,3.4659,144.27,144.24,3.4664]
[1727082904646,4.164,144.29,144.25,7.45]
[1727082905037,3.4658,144.28,144.25,10.9163]
[1727082907939,4.164,144.29,144.25,7.45]
[1727082908745,3.4656,144.28,144.25,10.9162]
[1727082912637,7.6294,144.29,144.26,3.466]
[1727082912838,2.7709,144.29,144.27,7.45]
[1727082913644,6.2363,144.29,144.27,7.45]
[1727082914643,6.2363,144.29,144.27,10.9158]
[1727082915638,6.2363,144.29,144.27,7.45]
[1727082918351,6.2363,144.29,144.27,10.9158]
[1727082918750,94.05574101,144.55,144.27,7.45]
[1727082918950,94.05574101,144.55,144.19,3.46308631]
[1727082918951,7.45,144.33,144.28,7.45]
[1727082919252,3.50000322,144.32,144.28,7.45]
[1727082920857,3.465,144.31,144.28,10.9155]
[1727082924164,3.465,144.31,144.28,3.4655]
[1727082924369,3.4651,144.3,144.26,7.45]
[1727082925262,3.4651,144.3,144.26,10.9159]
[1727082926067,3.4651,144.3,144.27,3.4658]
[1727082926265,6.21720322,144.32,144.21,3.44129006]
[1727082926266,6.21720322,144.32,144.29,7.45]
[1727082926773,9.68200322,144.32,144.29,10.9153]
[1727082927971,3.4651,144.3,144.21,62.38219649]
[1727082928169,3.4651,144.3,144.27,7.45]
[1727082928469,3.4649,144.31,144.28,3.4656]
[1727082932480,3.4651,144.3,144.27,10.9157]
[1727082937180,6.21720322,144.32,144.29,7.45]
[1727082937781,9.68200322,144.32,144.29,10.9153]
[1727082939178,9.68200322,144.32,144.29,7.45]
[1727082939380,3.4649,144.31,144.29,7.45]
[1727082940283,13.66720322,144.32,144.28,7.45]
[1727082940777,3.465,144.31,144.28,7.45]
[1727082940978,2.7172,144.32,144.3,7.45]
[1727082941180,7.45,144.36,144.31,7.45]
[1727082941379,3.4643,144.34,144.31,7.45]
[1727082941788,6.2481491,144.36,144.31,7.45]
[1727082942082,6.2481491,144.36,144.22,3.38418027]
[1727082942083,9.7119491,144.36,144.33,10.9144]
[1727082944586,2.7952,144.36,144.33,10.9144]
[1727082944786,1.3576,144.38,144.34,7.45]
[1727082944974,2.7996,144.41,144.37,7.45]
[1727082945284,3.4629,144.4,144.38,7.45]
[1727082945483,2.7996,144.41,144.31,3.48020654]
[1727082945681,3.4634,144.38,144.35,7.45]
[1727082952680,10.2496,144.41,144.35,7.45]
[1727082952882,7.45,144.38,144.33,10.9143]
[1727082953278,3.4636,144.37,144.33,10.9143]
[1727082953580,3.4636,144.37,144.34,10.9141]
[1727082954393,3.4636,144.37,144.35,7.45]
[1727082959384,2.7996,144.41,144.36,7.45]
[1727082959585,2.7996,144.41,144.38,7.45]
[1727082959892,6.2622,144.41,144.38,7.45]
[1727082960089,2.7996,144.41,144.38,7.45]
[1727082961888,3.4629,144.4,144.38,7.45]
[1727082962696,1.3919,144.43,144.38,7.45]
[1727082962887,7.45,144.47,144.42,7.45]
[1727082963196,2.789,144.48,144.44,7.45]
[1727082964099,3.4617,144.45,144.43,7.45]
[1727082964489,10.239,144.48,144.43,7.45]
[1727082964992,3.4617,144.45,144.43,7.45]
[1727082965798,3.4618,144.44,144.43,7.45]
[1727082968097,3.4614,144.46,144.43,7.45]
[1727082968294,3.4614,144.46,144.44,7.45]
[1727082969701,3.4615,144.45,144.44,7.45]
[1727082970393,3.4615,144.45,144.43,7.45]
[1727082974508,3.4614,144.46,144.43,7.45]
[1727082975411,3.4615,144.45,144.43,7.45]
[1727082975897,10.239,144.48,144.43,7.45]
[1727082976299,3.4616,144.45,144.43,7.45]
[1727082976500,3.4616,144.45,144.44,7.45]
[1727082983514,3.4614,144.46,144.44,7.45]
[1727082983714,3.39616714,144.49,144.45,7.45]
[1727082983907,3.4607,144.49,144.48,7.45]
[1727082984213,3.43321324,144.5,144.48,7.45]
[1727082984809,6.89371324,144.5,144.48,7.45]
[1727082989308,1.3344,144.55,144.49,7.45]
[1727082989504,3.49702174,144.54,144.51,7.45]
[1727082990104,6.95662174,144.54,144.51,7.45]
[1727082993518,3.49702174,144.54,144.5,7.45]
[1727082993715,7.45,144.54,144.49,7.45]
[1727082993921,10.94408336,144.54,144.49,7.45]
[1727082994614,3.46,144.52,144.49,7.45]
[1727082994819,10.94408336,144.54,144.48,3.4608]
[1727082995017,3.4602,144.51,144.47,3.461]
[1727082995316,7.45,144.53,144.48,7.45]
[1727082995523,10.94408336,144.54,144.49,7.45]
[1727082995729,7.45,144.54,144.49,7.45]
[1727082996021,3.4601,144.52,144.49,7.45]
[1727082996322,10.90738371,144.54,144.49,7.45]
[1727082996821,3.46,144.52,144.49,7.45]
[1727082997520,3.46,144.52,144.48,3.4607]
[1727082997732,3.46,144.52,144.49,7.45]
[1727082999520,3.4602,144.51,144.47,3.4609]
[1727082999715,3.4602,144.51,144.48,7.45]
[1727083001918,3.46,144.52,144.48,10.9108]
[1727083004640,7.45,144.53,144.47,7.45]
[1727083005036,3.4605,144.5,144.47,7.45]
[1727083006939,3.4605,144.5,144.47,10.911]
[1727083010738,7.45,144.51,144.37,225.0]
[1727083010943,7.45,144.5,144.44,7.45]
[1727083011243,8.8304,144.5,144.37,225.0]
[1727083011435,8.8304,144.5,144.44,7.45]
[1727083011837,8.8304,144.5,144.36,62.38238775]
[1727083012042,7.45,144.48,144.43,7.45]
[1727083012446,3.4611,144.47,144.44,7.45]
[1727083012937,8.8347,144.49,144.46,7.45]
[1727083012938,1.3847,144.49,144.46,7.45]
[1727083013137,1.3804,144.5,144.47,7.45]
[1727083013546,4.8409,144.5,144.47,7.45]
[1727083014544,3.4608,144.49,144.47,7.45]
[1727083014847,1.3804,144.5,144.46,7.45]
[1727083015343,3.4608,144.49,144.46,7.45]
[1727083015944,3.4608,144.49,144.47,7.45]
[1727083023438,3.4608,144.49,144.46,7.45]
[1727083024039,3.4609,144.48,144.46,7.45]
[1727083024241,7.45,144.49,144.44,7.45]
[1727083024650,3.4609,144.48,144.44,10.9116]
[1727083025545,3.4611,144.47,144.44,10.9116]
[1727083028251,3.4611,144.47,144.44,7.45]
[1727083028447,6.8852839,144.47,144.44,7.45]
[1727083029852,6.8852839,144.47,144.44,10.9117]
[1727083030154,7.45,144.45,144.37,10.96376264]
[1727083030354,7.45,144.43,144.36,62.38238775]
[1727083030652,7.45,144.41,144.37,7.45]
[1727083030858,10.9126,144.41,144.37,10.9133]
[1727083031343,7.45,144.41,144.38,10.9132]
[1727083031749,3.41864653,144.42,144.38,10.9132]
[1727083031951,1.3529,144.44,144.41,7.45]
[1727083032253,1.3288,144.46,144.43,7.45]
[1727083032555,6.92071973,144.45,144.43,7.45]
[1727083034259,1.3525,144.48,144.43,7.45]
[1727083034449,1.3525,144.48,144.44,7.45]
[1727083034651,3.4613,144.46,144.44,7.45]
[1727083034852,6.84879913,144.46,144.44,7.45]
[1727083035052,6.84879913,144.46,144.43,7.45]
[1727083035851,3.4613,144.46,144.43,7.45]
[1727083036757,3.4615,144.45,144.43,7.45]
[1727083036956,3.4615,144.45,144.42,7.45]
[1727083038352,3.4615,144.45,144.41,7.45]
[1727083038353,3.4618,144.44,144.41,7.45]
[1727083038755,3.462,144.43,144.41,7.45]
[1727083038952,3.462,144.43,144.4,7.45]
[1727083040050,7.45,144.45,144.41,7.45]
[1727083040250,1.334,144.46,144.41,7.45]
[1727083040251,8.784,144.46,144.41,7.45]
[1727083040856,3.4617,144.45,144.41,10.9123]
[1727083042752,7.45,144.45,144.4,7.45]
[1727083042951,7.45,144.43,144.36,58.88241886]
[1727083043373,3.4624,144.42,144.38,10.9131]
[1727083044961,3.4626,144.41,144.38,7.45]
[1727083045856,7.45,144.4,144.29,225.0]
[1727083046060,7.45,144.39,144.35,7.45]
[1727083046264,10.89477549,144.39,144.35,7.45]
[1727083047560,10.89477549,144.39,144.35,10.9139]
[1727083047561,14.35787549,144.39,144.35,10.9139]
[1727083048264,14.35787549,144.39,144.35,7.45]
[1727083048865,7.45,144.37,144.3,17.83742611]
[1727083049065,7.45,144.37,144.31,7.45]
[1727083049263,7.45,144.35,144.31,10.9147]
[1727083049960,7.45,144.35,144.32,3.4646]
[1727083050161,6.96587882,144.36,144.32,3.4646]
[1727083051161,3.464,144.35,144.31,3.4648]
[1727083051363,1.3881,144.4,144.3,17.83742611]
[1727083051568,7.45,144.37,144.33,7.45]
[1727083051763,7.45,144.37,144.31,3.4648]
[1727083051764,3.4639,144.36,144.31,3.4648]
[1727083051959,7.45,144.35,144.3,17.83742611]
[1727083052355,3.4645,144.33,144.3,17.83742611]
[1727083053462,10.9145,144.33,144.3,17.83742611]
[1727083053865,10.9148,144.32,144.3,17.83742611]
[1727083055170,10.9148,144.32,144.27,10.9156]
[1727083055363,10.9148,144.32,144.28,3.4656]
[1727083055761,10.9148,144.32,144.27,7.45]
[1727083055966,2.7996,144.36,144.26,7.45]
[1727083055967,10.9149,144.31,144.26,7.45]
[1727083056159,7.45,144.31,144.26,7.45]
[1727083056561,3.4653,144.3,144.26,7.45]
[1727083057670,7.45,144.28,144.24,3.4665]
[1727083057870,10.8964942,144.28,144.23,7.45]
[1727083058466,3.4659,144.27,144.23,10.9167]
[1727083058664,10.8964942,144.28,144.23,7.45]
[1727083059067,14.3621942,144.28,144.24,10.9164]
[1727083060175,7.45,144.27,144.17,58.95364032]
[1727083060383,7.45,144.26,144.21,7.45]
[1727083060566,7.45,144.26,144.2,7.45]
[1727083060877,7.45,144.26,144.17,58.95364032]
[1727083060878,7.45,144.23,144.17,58.95364032]
[1727083061081,7.45,144.22,144.17,66.40364032]
[1727083061381,10.9172,144.22,144.17,69.87174032]
[1727083061677,7.45,144.22,144.17,3.4681]
[1727083061874,7.45,144.2,144.16,3.4683]
[1727083062078,11.00373621,144.2,144.16,3.4683]
[1727083062279,3.4679,144.19,144.15,10.9187]
[1727083062474,3.4679,144.19,144.1,83.18]
[1727083062475,7.45,144.19,144.1,83.18]
[1727083062678,7.45,144.19,144.14,7.45]
[1727083063180,3.4681,144.18,144.14,10.9188]
[1727083063583,11.00373621,144.2,144.16,7.45]
[1727083063879,7.45,144.2,144.16,7.45]
[1727083064080,7.45,144.22,144.16,10.9183]
[1727083064283,7.45,144.22,144.09,58.98920515]
[1727083064284,11.66,144.24,144.15,11.66]
[1727083064584,3.4672,144.22,144.17,3.4682]
[1727083065083,3.4672,144.22,144.15,11.66]
[1727083065084,3.53980151,144.21,144.15,11.66]
[1727083065286,3.53980151,144.21,144.17,3.4681]
[1727083065673,3.4672,144.22,144.17,3.4681]
[1727083066483,6.95133365,144.21,144.17,3.4681]
[1727083066787,3.4674,144.21,144.17,3.4681]
[1727083067286,7.00754851,144.21,144.17,3.4681]
[1727083071381,3.54014851,144.21,144.17,3.4681]
[1727083071583,2.8387,144.23,144.15,11.66]
[1727083071987,2.8387,144.23,144.17,11.66]
[1727083072183,1.4264,144.23,144.17,11.66]
[1727083072383,11.66,144.26,144.17,11.66]
[1727083072581,3.4666,144.24,144.2,3.4674]
[1727083073590,3.4665,144.25,144.2,3.4674]
[1727083073884,11.66,144.26,144.2,3.4674]
[1727083073885,2.719,144.28,144.2,11.66]
[1727083074481,6.1848,144.28,144.23,3.4667]
[1727083074890,2.719,144.28,144.23,3.4667]
[1727083075077,14.379,144.28,144.18,11.66]
[1727083075891,14.379,144.28,144.16,11.66]
[1727083075892,11.66,144.26,144.16,11.66]
[1727083076092,3.4667,144.24,144.19,3.4676]
[1727083076483,11.66,144.26,144.16,11.66]
[1727083076688,3.4663,144.25,144.2,3.4674]
[1727083076892,3.4663,144.25,144.16,11.66]
[1727083078090,3.4663,144.25,144.18,11.66]
[1727083078482,3.4663,144.25,144.2,3.4675]
[1727083079390,11.66,144.24,144.16,11.66]
[1727083079694,11.66,144.24,144.14,11.66]
[1727083080188,11.66,144.24,144.17,3.4681]
[1727083080588,3.4672,144.22,144.17,3.4681]
[1727083080791,3.38595517,144.21,144.17,3.4681]
[1727083082699,3.4669,144.23,144.14,11.66]
[1727083083601,3.4671,144.22,144.14,11.66]
[1727083083801,3.43557005,144.21,144.14,11.66]
[1727083084001,11.66,144.24,144.14,11.66]
[1727083084202,3.4675,144.21,144.14,11.66]
[1727083084502,6.85067951,144.21,144.17,3.4681]
[1727083084998,6.85067951,144.21,144.18,3.468]
[1727083085403,3.38317951,144.21,144.18,3.468]
[1727083085704,11.66,144.23,144.19,3.4677]
[1727083085903,3.4671,144.22,144.14,11.66]
[1727083086398,11.66,144.23,144.14,11.66]
[1727083086603,15.127,144.23,144.14,11.66]
[1727083087106,11.66,144.23,144.18,3.4678]
[1727083087301,3.4672,144.22,144.18,3.4678]
[1727083089007,6.86609258,144.21,144.14,11.66]
[1727083090305,6.86609258,144.21,144.17,3.4681]
[1727083090499,6.86609258,144.21,144.14,11.66]
[1727083090699,3.4673,144.21,144.14,11.66]
[1727083090910,11.66,144.23,144.14,11.66]
[1727083091111,11.66,144.27,144.18,11.66]
[1727083091512,11.66,144.27,144.21,3.4672]
[1727083092005,11.66,144.27,144.18,11.66]
[1727083092204,11.66,144.25,144.16,11.66]
[1727083092405,7.46,144.22,144.19,3.4676]
[1727083093608,10.9269,144.23,144.19,3.4676]
[1727083093813,7.46,144.25,144.19,7.46]
[1727083094412,10.9265,144.25,144.21,3.4671]
[1727083096108,7.46,144.24,144.21,3.4671]
[1727083096713,10.9266,144.24,144.2,3.4674]
[1727083096911,7.46,144.23,144.18,7.46]
[1727083097416,10.9268,144.23,144.19,3.4675]
[1727083097604,10.9268,144.23,144.18,7.46]
[1727083097811,7.46,144.23,144.18,7.46]
[1727083098508,7.46,144.23,144.2,3.4674]
[1727083100419,2.719,144.28,144.21,7.46]
[1727083100713,10.179,144.28,144.22,7.46]
[1727083101314,13.6447,144.28,144.24,3.4665]
[1727083102315,6.1847,144.28,144.24,3.4665]
[1727083106221,2.719,144.28,144.25,3.4663]
[1727083108127,6.1846,144.28,144.24,3.4665]
[1727083109013,2.719,144.28,144.25,3.4663]
[1727083109417,2.719,144.28,144.21,11.65]
[1727083109725,2.719,144.28,144.26,3.466]
[1727083110421,3.4645,144.33,144.29,3.4654]
[1727083110626,15.8588,144.34,144.25,11.65]
[1727083111126,3.4647,144.32,144.28,3.4655]
[1727083112120,3.4649,144.31,144.28,3.4655]
[1727083112619,3.4649,144.31,144.27,3.4658]
[1727083112818,3.4652,144.3,144.25,11.65]
[1727083113019,3.4652,144.3,144.23,11.65]
[1727083113826,3.4652,144.3,144.26,3.4659]
[1727083114027,3.4649,144.31,144.23,11.65]
[1727083114421,15.8588,144.34,144.27,3.4656]
[1727083114623,3.465,144.31,144.27,3.4656]
[1727083117522,3.4653,144.3,144.26,3.466]
[1727083117730,3.50880843,144.29,144.23,11.65]
[1727083117925,11.65,144.3,144.21,11.65]
[1727083118229,2.8162,144.29,144.21,11.65]
[1727083118432,3.5157442,144.28,144.21,11.65]
[1727083118623,3.5157442,144.28,144.25,3.4663]
[1727083119926,6.9813442,144.28,144.25,3.4663]
[1727083121023,3.5157442,144.28,144.25,3.4663]
[1727083124630,2.8162,144.29,144.26,7.45]
[1727083125135,7.45,144.32,144.27,7.45]
[1727083125627,3.4649,144.31,144.27,10.9157]
[1727083133632,7.45,144.32,144.28,3.4656]
[1727083133633,3.4648,144.32,144.28,3.4656]
[1727083133930,7.45,144.32,144.27,7.45]
[1727083135040,3.4649,144.31,144.27,10.9158]
[1727083135844,7.45,144.3,144.25,7.45]
[1727083136039,3.38384188,144.29,144.25,7.45]
[1727083136536,3.38384188,144.29,144.26,3.4661]
[1727083139633,6.84924188,144.29,144.26,3.4661]
[1727083139833,6.84924188,144.29,144.25,10.9162]
[1727083140545,3.38384188,144.29,144.26,3.466]
[1727083142344,3.38384188,144.29,144.26,10.916]
[1727083143137,3.38384188,144.29,144.26,3.466]
[1727083143443,3.38384188,144.29,144.26,10.916]
[1727083145348,3.4649,144.31,144.27,10.9158]
[1727083146245,7.45,144.32,144.27,7.45]
[1727083146438,10.1792,144.36,144.31,7.45]
[1727083146642,2.7292,144.36,144.33,7.45]
[1727083146843,2.7292,144.36,144.34,3.4641]
[1727083147044,4.8262,144.38,144.34,3.4641]
[1727083147248,1.363,144.38,144.33,7.45]
[1727083147551,4.79087794,144.38,144.33,7.45]
[1727083147748,4.79087794,144.38,144.35,7.45]
[1727083147947,3.42787794,144.38,144.35,7.45]
[1727083148146,3.4627,144.4,144.35,10.9139]
[1727083148341,7.45,144.41,144.36,7.45]
[1727083148546,3.42042795,144.4,144.36,7.45]
[1727083148948,7.45,144.39,144.26,6.80740856]
[1727083149250,14.90147193,144.46,144.36,7.45]
[1727083149251,1.3274,144.4,144.36,7.45]
[1727083149451,3.39235472,144.39,144.36,7.45]
[1727083149755,3.39235472,144.39,144.36,10.9137]
[1727083149947,3.39235472,144.39,144.36,7.45]
[1727083150146,6.85545472,144.39,144.36,7.45]
[1727083150448,3.39582055,144.38,144.34,7.45]
[1727083150848,6.85922055,144.38,144.34,7.45]
[1727083152150,6.85922055,144.38,144.34,10.9142]
[1727083152961,6.85922055,144.38,144.35,7.45]
[1727083156147,3.4635,144.37,144.35,7.45]
[1727083156955,6.85912055,144.38,144.35,7.45]
[1727083158656,1.3441,144.39,144.36,10.9137]
[1727083161256,8.18600932,144.4,144.36,10.9137]
[1727083161761,8.18600932,144.4,144.37,7.45]
[1727083162154,12.17310932,144.4,144.29,3.51643145]
[1727083162353,12.17310932,144.4,144.35,7.45]
[1727083162653,1.3274,144.4,144.36,7.45]
[1727083162859,1.3274,144.4,144.37,7.45]
[1727083164264,1.3274,144.4,144.37,10.9134]
[1727083166762,3.4623,144.42,144.38,3.4632]
[1727083166962,11.5987,144.44,144.4,7.45]
[1727083167168,3.38508455,144.43,144.4,7.45]
[1727083168862,6.84728455,144.43,144.4,7.45]
[1727083170474,7.45,144.41,144.36,7.45]
[1727083170672,7.45,144.41,144.37,7.45]
[1727083171168,7.45,144.41,144.38,3.463]
[1727083171372,14.29728455,144.43,144.38,3.463]
[1727083171567,10.83508455,144.43,144.37,7.45]
[1727083171763,7.45,144.4,144.27,225.0]
[1727083171963,7.45,144.4,144.34,7.45]
[1727083172168,3.37906275,144.39,144.34,7.45]
[1727083172470,6.84226275,144.39,144.34,7.45]
[1727083172871,6.84226275,144.39,144.34,10.914]
[1727083173073,6.84226275,144.39,144.34,7.45]
[1727083173471,3.4634,144.38,144.34,7.45]